bitfinex/quotes_ETHUSD_20220201
["timestamp","ask_amount","ask_price","bid_price","bid_amount"]
[1643754181119,2.41092126,2789.9,2789.5,0.04376861]
[1643754181319,0.89629,2789.9,2789.5,0.04376861]
[1643754184425,0.89629,2789.9,2789.4,0.04433703]
[1643754184625,1.7926,2789.9,2789.4,0.04433703]
[1643754187082,1.51471014,2789.8,2789.4,0.04433703]
[1643754188826,1.51471014,2789.8,2789.3,0.04490545]
[1643754190833,0.89632,2789.6,2789.3,0.04490545]
[1643754200573,1.57290658,2789.6,2789.3,0.04490545]
[1643754202374,0.89632,2789.6,2789.3,0.04490545]
[1643754207681,1.79268,2789.6,2789.3,0.04490545]
[1643754207878,1.51483006,2789.5,2789.3,0.04490545]
[1643754208077,1.51483006,2789.5,2789.1,0.0460423]
[1643754208277,1.51483006,2789.5,2788.9,0.04717915]
[1643754208278,2.41123006,2789.5,2788.9,0.04717915]
[1643754208477,1.51483006,2789.4,2788.9,0.04717915]
[1643754208683,0.3,2789.6,2788.9,0.40136971]
[1643754208881,2.41129089,2789.5,2788.9,0.40136971]
[1643754209086,2.41129089,2789.5,2789.0,0.04661072]
[1643754209483,2.41127089,2789.4,2789.0,0.04661072]
[1643754209884,0.3,2789.3,2789.0,0.04661072]
[1643754210082,2.41127089,2789.4,2789.0,0.04661072]
[1643754210286,0.89639,2789.4,2789.0,2.05109481]
[1643754210485,0.1792,2789.7,2789.0,2.05109481]
[1643754210684,1.5147819,2789.6,2789.1,0.0460423]
[1643754210885,3.1034,2789.8,2789.1,0.0460423]
[1643754211133,1.51475765,2789.7,2789.1,0.0460423]
[1643754211742,0.89631,2789.6,2789.1,0.0460423]
[1643754212540,1.51486204,2789.5,2789.1,0.0460423]
[1643754212942,0.89637,2789.5,2789.1,0.0460423]
[1643754213140,0.89637,2789.5,2789.0,0.04661072]
[1643754214148,1.51488167,2789.4,2789.0,0.04661072]
[1643754214775,0.89637,2789.5,2789.0,0.04661072]
[1643754217776,1.51496143,2789.4,2789.0,0.04661072]
[1643754219229,0.89637,2789.5,2789.0,0.04661072]
[1643754221530,1.51489192,2789.4,2789.0,0.04661072]
[1643754221932,0.89637,2789.5,2789.0,0.04661072]
[1643754222579,1.51487731,2789.4,2789.0,0.04661072]
[1643754223181,0.89637,2789.5,2789.0,0.04661072]
[1643754226025,1.51485993,2789.4,2789.0,0.04661072]
[1643754230875,0.89637,2789.5,2789.0,0.04661072]
[1643754232074,1.51482602,2789.4,2789.0,0.04661072]
[1643754233645,2.41121602,2789.4,2789.0,0.04661072]
[1643754233944,0.89639,2789.4,2789.0,0.04661072]
[1643754234346,0.88184912,2789.4,2789.0,0.04661072]
[1643754234746,1.0250951,2789.7,2789.0,0.04661072]
[1643754234955,1.5148301,2789.6,2789.2,0.8964]
[1643754235447,1.5148301,2789.6,2789.3,0.04490545]
[1643754235849,1.5148301,2789.6,2789.2,0.04547388]
[1643754237050,1.5148301,2789.6,2789.4,0.89639]
[1643754237483,1.5148301,2789.6,2789.5,0.04376861]
[1643754240091,0.1792,2790.1,2789.5,0.04376861]
[1643754240294,1.51462248,2790.0,2789.5,0.04376861]
[1643754240488,1.51462248,2790.0,2789.3,0.04490545]
[1643754240687,1.51462248,2790.0,2789.4,0.1792]
[1643754240889,1.51462248,2790.0,2789.8,1.14819945]
[1643754241435,1.3237,2790.2,2789.9,0.04149491]
[1643754241635,1.51456983,2790.1,2789.9,0.04149491]
[1643754242036,1.51456983,2790.1,2789.9,2.04149491]
[1643754242234,1.3406,2790.7,2789.9,4.23755491]
[1643754242432,1.51437047,2790.6,2790.5,0.9135807]
[1643754242633,1.51437047,2790.8,2790.5,0.9135807]
[1643754242837,7.26908327,2791.1,2790.5,0.9135807]
[1643754242838,1.51437047,2790.7,2790.5,0.9135807]
[1643754243031,1.51437047,2790.6,2790.5,1.2135807]
[1643754243435,1.51437047,2790.9,2790.5,1.2135807]
[1643754243640,1.51437047,2790.8,2790.5,1.2135807]
[1643754243838,1.51437047,2790.7,2790.5,1.2135807]
[1643754244038,1.51437047,2790.6,2790.5,1.2135807]
[1643754244243,1.51437047,2790.6,2790.5,2.1094307]
[1643754244639,8.37671094,2791.1,2790.8,0.32742942]
[1643754244882,1.51420469,2791.0,2790.5,3.24838293]
[1643754245082,1.51420469,2791.0,2790.5,3.06928293]
[1643754245287,1.51420469,2791.0,2790.5,0.9135807]
[1643754245288,1.51310133,2791.0,2790.5,0.9135807]
[1643754246092,1.51310133,2791.0,2790.6,0.1791]
[1643754246494,1.51310133,2791.0,2790.6,0.59825804]
[1643754248293,1.1423,2791.1,2790.6,0.59825804]
[1643754248549,1.1423,2791.1,2791.0,0.85198043]
[1643754248739,1.19585,2791.3,2791.0,0.85198043]
[1643754249141,1.37495,2791.3,2791.0,0.85198043]
[1643754249943,1.07495,2791.3,2791.0,0.85198043]
[1643754250241,0.89585,2791.3,2791.0,0.85198043]
[1643754252380,0.89585,2791.3,2790.6,1.31494804]
[1643754252587,0.89585,2791.3,2790.7,1.84364761]
[1643754252787,0.1791,2791.5,2790.8,21.82574]
[1643754252987,0.1791,2791.6,2790.9,2.09296554]
[1643754253189,0.1791,2791.6,2790.9,2.39296554]
[1643754253588,0.1791,2791.6,2790.9,2.57207554]
[1643754253790,0.1791,2791.6,2790.9,3.57207554]
[1643754254190,2.401,2791.7,2791.5,0.91658123]
[1643754254393,1.12739958,2792.4,2791.7,20.93]
[1643754254594,0.71866161,2792.6,2791.8,2.17911]
[1643754254595,0.179,2792.5,2791.8,2.17911]
[1643754254793,1.34303602,2793.7,2791.9,20.93]
[1643754254992,0.179,2793.2,2792.2,0.01205536]
[1643754255192,0.1789,2793.6,2792.3,0.49620997]
[1643754255391,0.1789,2793.6,2792.9,0.94580272]
[1643754255594,2.12798159,2793.7,2792.9,1.12491272]
[1643754255793,1.1893,2793.7,2793.0,0.1789]
[1643754256639,1.60316029,2793.7,2793.0,0.1789]
[1643754257039,1.1893,2793.7,2793.0,2.10994747]
[1643754257238,1.1893,2793.7,2793.0,2.40994747]
[1643754257847,1.1893,2793.7,2793.0,3.40994747]
[1643754258047,1.63314244,2793.7,2793.1,0.17911]
[1643754258248,1.1893,2793.7,2793.0,2.40994747]
[1643754258652,1.1893,2793.7,2793.1,0.89501]
[1643754258846,1.1893,2793.7,2793.2,2.07763475]
[1643754259047,1.1893,2793.7,2793.4,0.89514013]
[1643754259449,0.56450845,2794.0,2793.2,2.07763475]
[1643754259802,0.56450845,2794.0,2793.1,2.79770966]
[1643754260003,0.56450845,2794.0,2793.1,1.90269966]
[1643754260903,0.56450845,2794.0,2793.3,0.89954534]
[1643754261308,0.1789,2794.0,2793.3,1.19954534]
[1643754261908,0.1789,2794.0,2793.3,0.89954534]
[1643754262511,0.1789,2794.0,2793.8,0.72080923]
[1643754262712,0.1789,2794.4,2793.4,0.3]
[1643754262910,4.666,2794.4,2793.4,0.3]
[1643754263110,4.666,2794.4,2793.3,2.17911]
[1643754263535,4.666,2794.4,2793.3,2.0]
[1643754263945,0.41648537,2794.0,2793.3,2.7018944]
[1643754265341,0.41648537,2794.0,2793.3,2.8807944]
[1643754265741,0.74945248,2794.1,2793.3,2.8807944]
[1643754266140,0.74945248,2794.1,2793.3,3.0599044]
[1643754266343,0.74945248,2794.1,2793.0,0.1789]
[1643754266545,0.1789,2794.0,2793.0,0.1789]
[1643754266742,0.4789,2794.0,2793.0,0.1789]
[1643754267398,0.4789,2794.0,2793.0,0.35801]
[1643754267594,0.38669285,2793.9,2793.3,0.94765202]
[1643754268797,0.4789,2794.0,2793.4,1.87997054]
[1643754268997,0.3,2794.0,2793.3,0.94765202]
[1643754269301,1.4789,2794.3,2793.4,1.85716905]
[1643754269499,1.4789,2794.3,2793.4,1.86933284]
[1643754269699,1.4789,2794.3,2793.4,1.93696221]
[1643754269897,1.4789,2794.3,2793.4,1.86719615]
[1643754269898,0.31792506,2794.0,2793.4,1.86719615]
[1643754270100,0.31792506,2794.0,2793.4,1.85242612]
[1643754270299,0.31792506,2794.0,2793.4,1.88750464]
[1643754270501,0.1789,2794.3,2793.4,1.88750464]
[1643754270705,1.56186053,2795.2,2793.4,1.88750464]
[1643754270706,0.1789,2794.4,2793.6,20.93]
[1643754270904,0.1789,2794.4,2793.7,2.35801]
[1643754271148,0.1789,2794.4,2793.7,3.65801]
[1643754271343,0.1789,2794.4,2793.7,0.95801]
[1643754271544,1.1486,2795.3,2793.8,1.0]
[1643754271744,1.1486,2795.3,2794.4,0.89452]
[1643754271745,1.52456999,2795.3,2794.4,0.89452]
[1643754271949,0.1789,2795.5,2794.5,0.1789]
[1643754272152,0.1789,2795.5,2794.6,21.03660606]
[1643754272348,0.1787,2796.0,2794.7,0.1787]
[1643754272548,0.1787,2796.0,2794.7,2.35781]
[1643754272949,0.40491105,2795.8,2795.2,0.94283139]
[1643754273352,0.1787,2796.0,2794.7,3.25221]
[1643754273548,8.98222097,2795.9,2794.7,3.25221]
[1643754273750,7.47,2795.9,2794.8,1.3]
[1643754273949,7.47,2795.9,2794.9,23.10911]
[1643754274150,7.47,2795.9,2794.9,23.11001135]
[1643754274352,7.47,2795.9,2795.4,0.81753163]
[1643754274554,7.47,2795.9,2795.5,0.1787]
[1643754274784,1.2284,2796.1,2795.5,0.1787]
[1643754274990,1.2284,2796.1,2795.4,1.29664163]
[1643754276993,1.2284,2796.1,2795.5,1.98095421]
[1643754277196,1.2284,2796.1,2795.5,2.15965421]
[1643754277395,0.43064399,2795.9,2795.5,0.1787]
[1643754277596,0.43064399,2795.9,2795.1,0.1787]
[1643754278400,0.7830283,2795.8,2795.1,0.1787]
[1643754278633,0.7830283,2795.8,2795.0,2.05255907]
[1643754278832,0.7830283,2795.8,2795.0,0.1787]
[1643754281835,0.44393563,2795.4,2795.0,0.1787]
[1643754282036,0.1787,2795.7,2794.9,0.00090135]
[1643754283286,0.38976682,2795.5,2794.9,0.00090135]
[1643754291896,0.38976682,2795.5,2795.0,0.17911]
[1643754292095,0.38976682,2795.5,2795.0,2.05507189]
[1643754292296,0.38976682,2795.5,2795.0,2.17596189]
[1643754292700,0.38976682,2795.5,2794.9,0.00090135]
[1643754293193,0.38976682,2795.5,2794.8,2.61447284]
[1643754293849,0.78328155,2795.3,2794.8,0.1787]
[1643754294047,0.38976682,2795.5,2794.7,0.1787]
[1643754295349,1.2859308,2795.5,2794.7,0.1787]
[1643754295548,0.42330186,2795.0,2794.7,0.1787]
[1643754295749,0.42330186,2795.0,2794.6,0.58571606]
[1643754296353,0.1789,2795.4,2794.6,0.58571606]
[1643754297384,0.42546599,2795.2,2794.6,0.58571606]
[1643754300088,0.1789,2795.4,2794.6,0.58571606]
[1643754301353,0.1789,2795.4,2794.6,0.76441606]
[1643754302151,0.40383164,2795.1,2794.6,0.76441606]
[1643754303255,0.1789,2795.4,2794.6,0.76441606]
[1643754304454,0.37042148,2794.9,2794.6,0.28530606]
[1643754304663,0.37042148,2794.9,2794.2,0.25]
[1643754304899,0.37042148,2794.9,2794.0,0.1789]
[1643754305099,1.51226997,2794.8,2793.8,0.1789]
[1643754305501,0.73743203,2794.5,2793.8,0.1789]
[1643754305702,0.44887601,2794.2,2793.8,0.1789]
[1643754306604,0.44887601,2794.2,2793.8,0.4789]
[1643754306805,0.44887601,2794.2,2793.8,0.1789]
[1643754307007,0.44887601,2794.2,2793.4,0.25]
[1643754307208,0.41224503,2793.6,2793.4,0.25]
[1643754307410,3.44582395,2794.4,2793.1,0.1789]
[1643754307705,1.51981295,2794.3,2793.1,0.1789]
[1643754307906,0.72020456,2793.9,2793.1,0.98763933]
[1643754308111,0.72020456,2793.9,2793.1,0.1789]
[1643754308309,0.72449227,2793.9,2793.1,0.1789]
[1643754308548,0.37499104,2793.6,2793.1,0.1789]
[1643754308743,0.37499104,2793.6,2792.6,0.17911]
[1643754308942,0.37499104,2793.6,2792.7,0.1789]
[1643754309143,0.69524183,2793.3,2792.7,0.1789]
[1643754309844,0.3260592,2793.1,2792.7,0.1789]
[1643754310145,0.3260592,2793.1,2792.6,0.47911]
[1643754310343,0.3260592,2793.1,2792.6,0.17911]
[1643754310745,0.3260592,2793.1,2792.5,0.1789]
[1643754311250,0.3260592,2793.1,2792.3,0.1789]
[1643754311546,0.3260592,2793.1,2792.1,0.1789]
[1643754311746,0.8340097,2792.8,2792.1,2.13552786]
[1643754311947,0.3260592,2793.1,2792.1,2.13552786]
[1643754312592,0.3260592,2793.1,2792.1,0.4789]
[1643754312792,0.3260592,2793.1,2792.1,0.1789]
[1643754312989,0.3260592,2793.1,2792.1,2.02111598]
[1643754313187,0.1789,2793.0,2792.1,0.4789]
[1643754313389,0.1789,2793.0,2792.1,0.1789]
[1643754313592,0.35858228,2792.5,2792.1,0.1789]
[1643754313991,0.35858228,2792.5,2791.8,1.11457353]
[1643754314194,0.35858228,2792.5,2791.9,1.8615942]
[1643754314390,0.6906668,2792.6,2791.9,1.88686131]
[1643754314591,0.6906668,2792.6,2791.7,0.1789]
[1643754315294,0.1789,2792.5,2791.6,0.2789]
[1643754315495,0.86492906,2791.9,2791.6,0.5789]
[1643754315694,0.86492906,2791.9,2791.6,0.2789]
[1643754315896,0.86492906,2791.9,2791.6,0.1]
[1643754315897,0.38944341,2791.8,2791.6,0.1]
[1643754316142,0.38944341,2791.8,2791.2,0.1789]
[1643754316348,0.38944341,2791.8,2791.0,0.1791]
[1643754316547,0.38944341,2791.8,2791.0,2.13235355]
[1643754316743,0.38944341,2791.8,2791.0,0.1791]
[1643754318751,0.32223372,2791.3,2791.0,0.1791]
[1643754320004,0.32223372,2791.3,2790.8,0.1791]
[1643754320203,0.32223372,2791.3,2790.8,0.4791]
[1643754320403,0.32223372,2791.3,2790.8,0.1791]
[1643754320604,0.32223372,2791.3,2790.7,0.1791]
[1643754320806,0.69728178,2791.4,2790.7,0.1791]
[1643754320807,0.36987526,2790.8,2790.7,0.1791]
[1643754321006,0.69728178,2791.4,2790.6,0.1791]
[1643754321609,0.69728178,2791.4,2790.4,0.1791]
[1643754322319,0.35102403,2791.1,2790.4,0.4791]
[1643754322504,0.73155408,2790.9,2790.4,0.4791]
[1643754322703,0.35102403,2791.1,2790.4,0.4791]
[1643754323741,1.15714956,2791.1,2790.4,0.4791]
[1643754327688,0.80612553,2791.1,2790.4,0.4791]
[1643754327990,0.1791,2791.6,2790.4,0.4791]
[1643754328287,0.1791,2791.6,2790.5,0.17911]
[1643754328691,0.43276351,2791.3,2790.5,0.17911]
[1643754329692,0.85697062,2791.2,2790.4,0.4791]
[1643754331634,0.84394562,2791.2,2790.4,0.4791]
[1643754331839,1.14394562,2791.2,2790.4,0.4791]
[1643754332637,1.14394562,2791.2,2790.4,0.1791]
[1643754332837,1.14394562,2791.2,2790.1,1.17911]
[1643754332838,1.14394562,2791.2,2790.2,0.1791]
[1643754333037,2.31764562,2791.2,2790.2,0.1791]
[1643754333241,2.31764562,2791.2,2790.2,0.4791]
[1643754333842,0.37883221,2790.8,2790.2,0.4791]
[1643754335186,2.31764562,2791.2,2790.2,0.4791]
[1643754336285,0.38568732,2790.9,2790.2,0.4791]
[1643754336886,2.31764562,2791.2,2790.2,0.4791]
[1643754337686,2.31764562,2791.2,2790.2,0.1791]
[1643754337887,2.31764562,2791.2,2790.1,0.1791]
[1643754338288,0.37880543,2790.9,2790.1,0.1791]
[1643754338540,2.31764562,2791.2,2790.1,0.1791]
[1643754339143,2.01764562,2791.2,2790.1,0.1791]
[1643754339748,0.35811134,2791.1,2790.1,0.1791]
[1643754339945,0.35811134,2791.1,2790.2,0.17911]
[1643754340146,0.35811134,2791.1,2790.3,0.1791]
[1643754340950,0.73903314,2790.7,2790.3,0.1791]
[1643754341151,0.35811134,2791.1,2790.3,0.1791]
[1643754342600,0.35811134,2791.1,2790.2,0.3]
[1643754342601,0.67720472,2791.0,2790.2,0.3]
[1643754342798,0.67720472,2791.0,2790.1,0.1791]
[1643754343198,0.67720472,2791.0,2790.2,0.17911]
[1643754343799,0.67720472,2791.0,2790.1,0.1791]
[1643754349142,1.1737,2791.2,2790.1,0.1791]
[1643754349346,1.1737,2791.2,2790.2,1.07487]
[1643754349646,0.1791,2791.5,2790.7,0.01227197]
[1643754349892,0.1791,2791.8,2790.7,0.19138197]
[1643754350298,1.24623442,2791.6,2790.7,0.93335151]
[1643754351295,0.1791,2791.8,2790.7,0.93335151]
[1643754351495,0.1791,2791.8,2790.8,22.34544065]
[1643754351696,0.1791,2791.8,2790.9,0.29264742]
[1643754351995,1.27679862,2792.2,2791.0,0.1791]
[1643754351996,0.1791,2792.1,2791.0,0.1791]
[1643754352295,0.9255037,2792.0,2791.1,0.54872808]
[1643754352494,0.9255037,2792.0,2791.1,0.6622655]
[1643754352694,0.9255037,2792.0,2791.1,1.84872808]
[1643754352897,0.9255037,2792.0,2791.1,0.84872808]
[1643754353294,0.52339555,2792.1,2791.1,0.84872808]
[1643754353295,0.52339555,2792.1,2791.2,0.67136586]
[1643754354557,0.52339555,2792.1,2791.2,1.67136586]
[1643754354855,0.08357871,2792.0,2791.2,1.67136586]
[1643754355060,0.1791,2792.0,2791.2,1.67136586]
[1643754355256,0.1791,2792.0,2791.3,0.17911]
[1643754355459,0.1791,2792.1,2791.3,0.17911]
[1643754356057,0.1791,2792.1,2791.3,0.47911]
[1643754357394,0.39938712,2791.7,2791.3,0.47911]
[1643754357894,0.39938712,2791.7,2791.3,0.17911]
[1643754358495,0.1791,2792.1,2791.3,0.17911]
[1643754359504,0.57476135,2792.1,2791.3,0.17911]
[1643754360122,1.51351766,2792.0,2791.3,0.17911]
[1643754362040,0.1791,2792.1,2791.3,0.17911]
[1643754362843,0.36633158,2792.0,2791.0,0.52346066]
[1643754363044,0.36633158,2792.0,2791.1,0.17911]
[1643754363445,0.36633158,2792.0,2791.0,0.52346066]
[1643754363845,0.36633158,2792.0,2791.0,1.22579191]
[1643754364044,0.36633158,2792.0,2791.0,1.52579191]
[1643754364244,0.36633158,2792.0,2791.0,1.82579191]
[1643754364445,0.1791,2792.1,2791.0,1.82579191]
[1643754364646,1.51352943,2792.0,2791.0,1.82579191]
[1643754365087,0.82624589,2791.7,2791.0,1.82579191]
[1643754365287,0.82624589,2791.7,2791.0,0.95821]
[1643754365488,0.82624589,2791.7,2791.0,0.65821]
[1643754366988,1.1423,2791.8,2791.0,1.42915004]
[1643754367998,1.93891139,2791.8,2791.0,1.42915004]
[1643754368291,1.93891139,2791.8,2791.0,0.65821]
[1643754369145,1.93891139,2791.8,2791.0,0.4791]
[1643754369445,1.93891139,2791.8,2791.0,0.1791]
[1643754369645,1.93891139,2791.8,2790.8,0.4791]
[1643754369849,1.93891139,2791.8,2790.8,1.1791]
[1643754370043,1.93891139,2791.8,2790.8,0.1791]
[1643754370243,1.93891139,2791.8,2790.8,1.1791]
[1643754370444,1.93891139,2791.8,2790.9,0.17911]
[1643754371744,0.93385157,2791.3,2790.9,0.17911]
[1643754372400,4.571,2791.7,2790.9,0.17911]
[1643754372601,4.571,2791.7,2791.0,0.89562]
[1643754372802,4.571,2791.7,2791.0,1.19562]
[1643754373200,4.571,2791.7,2791.0,0.89562]
[1643754373404,0.87677301,2791.5,2791.0,0.89562]
[1643754373611,0.87677301,2791.5,2791.0,1.19562]
[1643754373804,0.87677301,2791.5,2791.0,0.3]
[1643754374108,0.87677301,2791.5,2790.8,1.79122]
[1643754374109,0.87677301,2791.5,2790.8,2.09122]
[1643754379992,0.87677301,2791.5,2790.7,0.1791]
[1643754382598,0.40486496,2791.4,2790.7,0.1791]
[1643754385444,0.87677301,2791.5,2790.7,0.1791]
[1643754387142,0.41112492,2791.4,2790.7,0.1791]
[1643754387790,0.41112492,2791.4,2790.8,0.89567]
[1643754388190,0.87677301,2791.5,2790.8,1.19567]
[1643754390497,0.87677301,2791.5,2790.8,1.67478]
[1643754390697,0.87677301,2791.5,2790.8,2.67478]
[1643754390897,0.87677301,2791.5,2790.8,1.67478]
[1643754391138,0.87677301,2791.5,2790.9,1.0]
[1643754391337,0.87677301,2791.5,2791.0,0.89561]
[1643754391538,0.87677301,2791.5,2791.0,1.19561]
[1643754394248,4.571,2791.7,2791.0,1.19561]
[1643754394446,1.51368068,2791.6,2791.0,1.19561]
[1643754395287,2.24863682,2791.6,2791.0,1.19561]
[1643754395488,0.73377569,2791.6,2791.0,1.19561]
[1643754395688,0.73377569,2791.6,2791.0,0.3]
[1643754396189,0.73377569,2791.6,2790.8,2.27029]
[1643754396390,0.73377569,2791.6,2790.8,2.57029]
[1643754396792,1.51370934,2791.5,2790.9,1.0]
[1643754396991,1.51370934,2791.5,2790.8,2.57029]
[1643754397395,1.51370934,2791.5,2790.8,1.79118]
[1643754398658,1.51370934,2791.5,2790.8,2.09118]
[1643754399753,0.73377569,2791.6,2790.8,2.09118]
[1643754400053,1.5137138,2791.5,2790.8,2.09118]
[1643754400653,1.5137138,2791.5,2790.8,2.27029]
[1643754403393,1.5137138,2791.5,2790.8,2.57029]
[1643754403796,1.5137138,2791.5,2790.8,2.27029]
[1643754403999,1.5137138,2791.5,2790.9,1.79127]
[1643754412392,0.37239672,2791.3,2790.9,1.79127]
[1643754412592,3.5138885,2791.2,2790.5,0.1791]
[1643754412790,3.5138885,2791.2,2789.6,3.88093505]
[1643754412791,1.5138885,2791.1,2790.0,0.1791]
[1643754412991,1.5138885,2791.1,2789.7,2.26340508]
[1643754412992,2.1791,2791.0,2789.8,0.89605]
[1643754413218,2.1791,2791.0,2790.1,0.04035806]
[1643754413219,1.5138885,2790.9,2790.1,0.04035806]
[1643754413390,0.43248051,2790.4,2790.1,0.04035806]
[1643754413673,0.1791,2790.8,2790.1,0.04035806]
[1643754413874,1.51417739,2790.7,2789.7,0.04263176]
[1643754414075,0.89607,2790.5,2789.7,0.04263176]
[1643754414273,0.89607,2790.5,2789.6,0.04320018]
[1643754414475,1.1683,2790.4,2789.6,0.04320018]
[1643754414874,1.1683,2790.4,2789.6,0.34320018]
[1643754415075,1.1683,2790.4,2789.6,0.04320018]
[1643754415272,1.1683,2790.4,2789.7,0.93870176]
[1643754415273,0.35778384,2790.1,2789.7,0.93870176]
[1643754415475,0.77644059,2790.0,2789.7,1.19607]
[1643754415673,0.77644059,2790.0,2789.8,0.04206334]
[1643754417502,0.77644059,2790.0,2789.6,0.04320018]
[1643754425698,0.77644059,2790.0,2789.6,0.34320018]
[1643754425896,0.77644059,2790.0,2789.6,0.04320018]
[1643754426097,0.77644059,2790.0,2789.7,0.04263176]
[1643754426296,0.77644059,2790.0,2789.6,0.04320018]
[1643754428199,0.77644059,2790.0,2789.4,0.04433703]
[1643754429043,0.77644059,2790.0,2789.4,0.22344703]
[1643754429444,0.77644059,2790.0,2789.5,0.04376861]
[1643754431747,0.77644059,2790.0,2789.6,0.65257486]
[1643754431950,0.77644059,2790.0,2789.5,0.04376861]
[1643754432154,0.77644059,2790.0,2789.7,0.04263176]
[1643754432390,0.77644059,2790.0,2789.5,0.04376861]
[1643754433793,0.77644059,2790.0,2789.6,0.17911]
[1643754433995,0.89616,2790.3,2789.5,0.34376861]
[1643754434293,0.89616,2790.3,2789.6,0.22231018]
[1643754434593,0.89616,2790.3,2789.7,0.04263176]
[1643754434994,0.87431038,2790.1,2789.7,0.04263176]
[1643754438665,0.82431038,2790.1,2789.7,0.04263176]
[1643754449001,0.82431038,2790.1,2789.5,0.92721607]
[1643754449002,0.82431038,2790.1,2789.6,0.04320018]
[1643754460862,0.82285109,2790.1,2789.6,0.04320018]
[1643754464204,0.82285109,2790.1,2789.6,0.92723318]
[1643754464502,0.82285109,2790.1,2789.6,1.22723318]
[1643754464903,0.82285109,2790.1,2789.6,0.92723318]
[1643754466349,0.82285109,2790.1,2789.6,1.65794589]
[1643754467955,0.82285109,2790.1,2789.6,1.22723318]
[1643754469559,0.89616,2790.3,2789.6,22.15723318]
[1643754470616,1.68492142,2790.3,2789.6,22.15723318]
[1643754471403,1.68492142,2790.3,2789.6,22.51272223]
[1643754472807,0.78876142,2790.3,2789.8,0.89608]
[1643754473205,1.51441249,2790.2,2789.8,0.89608]
[1643754473405,0.78876142,2790.3,2789.8,1.19608]
[1643754475460,0.78876142,2790.3,2789.8,0.89608]
[1643754478900,1.51445779,2790.2,2789.8,0.89608]
[1643754480304,2.06439,2790.4,2789.8,0.89608]
[1643754480502,1.51443673,2790.3,2789.8,0.89608]
[1643754483080,1.51446351,2790.2,2789.8,0.89608]
[1643754483357,1.51446351,2790.1,2789.8,0.89608]
[1643754483555,2.06439,2790.4,2789.9,20.93]
[1643754483754,1.51444531,2790.3,2789.8,0.89608]
[1643754484557,1.51444531,2790.3,2789.9,20.93]
[1643754485400,1.51444531,2790.3,2789.8,0.89608]
[1643754486402,1.51444531,2790.3,2789.6,0.89613]
[1643754487605,2.06439,2790.4,2789.6,0.89613]
[1643754488404,4.07036763,2790.4,2789.6,0.89613]
[1643754489255,4.10722426,2790.4,2789.6,0.89613]
[1643754489455,4.08039312,2790.4,2789.6,0.89613]
[1643754489656,2.06439,2790.4,2789.6,0.89613]
[1643754490063,2.06439,2790.4,2789.4,20.93]
[1643754490258,0.66691053,2790.7,2789.5,2.0]
[1643754490471,0.66691053,2790.7,2789.0,0.10755]
[1643754490472,0.66691053,2790.5,2789.0,0.10755]
[1643754490668,0.01263608,2790.6,2789.0,0.10755]
[1643754490669,0.66691053,2790.3,2789.1,0.01283784]
[1643754490858,0.66691053,2790.3,2789.2,0.10755]
[1643754491057,1.56300053,2790.4,2789.6,0.89613]
[1643754491458,0.66691053,2790.3,2789.6,0.89613]
[1643754491657,0.89609,2790.4,2789.6,0.89613]
[1643754492059,0.89609,2790.4,2789.6,1.19613]
[1643754492316,0.883148,2790.4,2789.5,0.1792]
[1643754494914,0.883148,2790.4,2789.6,0.89611]
[1643754495314,0.883148,2790.4,2789.6,1.19611]
[1643754495515,2.063648,2790.4,2789.6,1.19611]
[1643754497447,2.063648,2790.4,2789.6,0.89611]
[1643754498250,3.063648,2790.4,2789.6,0.89611]
[1643754498451,2.063648,2790.4,2789.6,0.89611]
[1643754498651,0.89617,2790.2,2789.5,0.1792]
[1643754498851,0.89617,2790.2,2789.4,0.1675]
[1643754500306,0.89617,2790.2,2789.1,1.97155]
[1643754500307,0.89617,2790.2,2789.2,2.0]
[1643754500505,0.1792,2790.1,2789.2,2.89623]
[1643754500704,0.89623,2790.0,2789.2,0.89623]
[1643754501906,0.89623,2790.0,2789.1,1.97155]
[1643754503950,0.89623,2790.0,2789.1,1.79235]
[1643754506257,1.19623,2790.0,2789.1,1.79235]
[1643754507305,1.19623,2790.0,2789.1,1.97155]
[1643754507506,1.51488861,2789.9,2789.1,1.97155]
[1643754507708,3.67268861,2789.9,2789.1,1.97155]
[1643754507909,1.51488861,2789.8,2789.1,1.97155]
[1643754510310,1.51488861,2789.8,2789.1,1.79235]
[1643754511852,0.89632,2789.7,2789.0,1.79242]
[1643754512052,1.51488861,2789.6,2789.0,1.79242]
[1643754512651,1.1578,2789.9,2789.0,1.79242]
[1643754512853,1.51487959,2789.8,2789.0,1.79242]
[1643754513856,0.89634,2789.6,2789.0,1.79242]
[1643754514254,0.89634,2789.6,2788.8,0.89637]
[1643754514457,0.89634,2789.6,2788.9,0.1792]
[1643754516502,0.89533727,2789.6,2788.9,0.1792]
[1643754518100,1.0,2789.8,2789.1,0.89628]
[1643754518301,1.51486115,2789.7,2789.1,0.89628]
[1643754519755,1.51486115,2789.6,2789.3,0.89622]
[1643754519954,9.44708,2789.9,2789.3,0.89622]
[1643754520154,1.51483571,2789.8,2789.3,0.89622]
[1643754522698,5.4743,2789.9,2789.3,0.89622]
[1643754522903,1.51474435,2789.8,2789.3,0.89622]
[1643754526551,5.4743,2789.9,2789.3,0.89622]
[1643754527455,5.4243,2789.9,2789.3,0.89622]
[1643754528453,1.51474332,2789.8,2789.3,0.89622]
[1643754529254,5.4243,2789.9,2789.3,0.89622]
[1643754529457,1.51473823,2789.8,2789.3,0.89622]
[1643754529657,1.51473823,2789.8,2789.3,0.74961573]
[1643754529900,0.3,2789.7,2789.3,0.74961573]
[1643754530207,5.7243,2789.9,2789.3,0.74961573]
[1643754530404,1.51478092,2789.8,2789.1,0.4792]
[1643754530801,1.51478092,2789.8,2789.1,1.37547]
[1643754532805,1.51478092,2789.8,2789.1,1.19627]
[1643754542159,2.18169145,2789.8,2789.1,1.19627]
[1643754542559,0.89631,2789.7,2789.1,0.3]
[1643754542760,2.41109092,2789.7,2789.0,2.0924]
[1643754542961,1.51478092,2789.6,2789.0,2.0924]
[1643754545702,1.51478092,2789.6,2789.1,0.89627]
[1643754553208,1.44613981,2789.6,2789.1,0.89627]
[1643754572853,1.74613981,2789.6,2789.1,0.89627]
[1643754573056,0.3,2789.6,2789.1,0.89627]
[1643754573255,1.5148327,2789.5,2789.1,0.89627]
[1643754574059,1.5148327,2789.4,2789.1,0.89627]